[Event "Early-Titled-Tuesday-Blitz-February-06-2024"]
[Site "Chess.com"]
[Date "2024.02.06"]
[Round "1"]
[White "NikoTheodorou"]
[Black "Statham_01"]
[Result "1-0"]
[WhiteElo "3067"]
[BlackElo "2527"]
[TimeControl "180+1"]
[EndTime "8:06:35 PST"]
[Termination "NikoTheodorou won by resignation"]

1. Nf3 {[%clk 0:03:00.9]} 1... d5 {[%clk 0:02:59.5]} 2. b3 {[%clk 0:03:01.5]}
2... Nc6 {[%clk 0:02:55.2]} 3. Bb2 {[%clk 0:03:01.3]} 3... Bg4 {[%clk
0:02:54.6]} 4. e3 {[%clk 0:03:01.2]} 4... e5 {[%clk 0:02:54.1]} 5. h3 {[%clk
0:03:01.6]} 5... Bxf3 {[%clk 0:02:48.1]} 6. Qxf3 {[%clk 0:03:02.5]} 6... Nf6
{[%clk 0:02:47.4]} 7. Bb5 {[%clk 0:03:01.5]} 7... Bd6 {[%clk 0:02:47.9]} 8. Nc3
{[%clk 0:02:46.7]} 8... a6 {[%clk 0:02:41.8]} 9. Bxc6+ {[%clk 0:02:43.8]} 9...
bxc6 {[%clk 0:02:42.7]} 10. g4 {[%clk 0:02:38.4]} 10... e4 {[%clk 0:02:32.2]}
11. Qg2 {[%clk 0:02:38.7]} 11... Qe7 {[%clk 0:02:24.9]} 12. f3 {[%clk
0:02:28.4]} 12... d4 {[%clk 0:01:52.4]} 13. Nxe4 {[%clk 0:02:17]} 13... Nxe4
{[%clk 0:01:50.6]} 14. fxe4 {[%clk 0:02:17.9]} 14... dxe3 {[%clk 0:01:51.3]} 15.
e5 {[%clk 0:01:49.5]} 15... exd2+ {[%clk 0:01:47.7]} 16. Kd1 {[%clk 0:01:49.7]}
16... O-O {[%clk 0:01:00.6]} 17. exd6 {[%clk 0:01:47.9]} 17... Qxd6 {[%clk
0:01:00]} 18. Qxd2 {[%clk 0:01:39.9]} 18... Qg6 {[%clk 0:00:52.3]} 19. Kc1
{[%clk 0:01:33.7]} 19... Rad8 {[%clk 0:00:49]} 20. Qf4 {[%clk 0:01:33.3]} 20...
Rfe8 {[%clk 0:00:45.1]} 21. Bc3 {[%clk 0:01:12.8]} 21... Re2 {[%clk 0:00:42.2]}
22. Qf5 {[%clk 0:01:05.5]} 22... Qd6 {[%clk 0:00:34.6]} 23. Kb2 {[%clk
0:01:02.5]} 23... Qg3 {[%clk 0:00:25]} 24. Rad1 {[%clk 0:00:57.9]} 24... Rde8
{[%clk 0:00:25.4]} 25. Rhe1 {[%clk 0:00:52.3]} 25... Rxe1 {[%clk 0:00:18.6]} 26.
Rxe1 {[%clk 0:00:53.2]} 26... Rf8 {[%clk 0:00:16.5]} 27. Qe5 {[%clk 0:00:47.3]}
27... Qxe5 {[%clk 0:00:16.1]} 28. Rxe5 {[%clk 0:00:48.2]} 28... g6 {[%clk
0:00:09.3]} 29. Rc5 {[%clk 0:00:47.8]} 29... f5 {[%clk 0:00:09.4]} 30. gxf5
{[%clk 0:00:47.1]} 30... gxf5 {[%clk 0:00:10.3]} 31. Rxc6 {[%clk 0:00:46.5]}
31... Rf7 {[%clk 0:00:10.4]} 32. Rxa6 {[%clk 0:00:44.6]} 1-0

[Event "Early-Titled-Tuesday-Blitz-February-06-2024"]
[Site "Chess.com"]
[Date "2024.02.06"]
[Round "1"]
[White "GMG"]
[Black "Gryffindorac8"]
[Result "1-0"]
[WhiteElo "2673"]
[BlackElo "2355"]
[TimeControl "180+1"]
[EndTime "8:06:35 PST"]
[Termination "GMG won by checkmate"]

1. Nf3 {[%clk 0:02:55.7]} 1... Nf6 {[%clk 0:02:58]} 2. c4 {[%clk 0:02:55.1]}
2... e6 {[%clk 0:02:58]} 3. g3 {[%clk 0:02:55]} 3... d5 {[%clk 0:02:58]} 4. Bg2
{[%clk 0:02:55.1]} 4... Be7 {[%clk 0:02:57.9]} 5. d4 {[%clk 0:02:54.9]} 5... O-O
{[%clk 0:02:54.9]} 6. O-O {[%clk 0:02:54.7]} 6... c5 {[%clk 0:02:54.8]} 7. cxd5
{[%clk 0:02:54.5]} 7... exd5 {[%clk 0:02:54.8]} 8. Nc3 {[%clk 0:02:53.8]} 8...
Nc6 {[%clk 0:02:54.5]} 9. Be3 {[%clk 0:02:54.3]} 9... cxd4 {[%clk 0:02:24]} 10.
Nxd4 {[%clk 0:02:53.5]} 10... Re8 {[%clk 0:02:23.8]} 11. Rc1 {[%clk 0:02:51.8]}
11... Bg4 {[%clk 0:02:20.7]} 12. h3 {[%clk 0:02:50]} 12... Be6 {[%clk
0:02:17.4]} 13. Nxe6 {[%clk 0:02:24]} 13... fxe6 {[%clk 0:02:18.3]} 14. Qa4
{[%clk 0:02:23.8]} 14... Bd6 {[%clk 0:01:31.1]} 15. Rfd1 {[%clk 0:02:15.5]}
15... Rc8 {[%clk 0:01:30.9]} 16. Nb5 {[%clk 0:02:09.8]} 16... Bb8 {[%clk
0:01:28]} 17. Nd4 {[%clk 0:02:08.4]} 17... Qd7 {[%clk 0:01:22.6]} 18. Nb3 {[%clk
0:01:54.3]} 18... Kh8 {[%clk 0:01:08.9]} 19. Nc5 {[%clk 0:01:51]} 19... Qf7
{[%clk 0:01:08.7]} 20. Qb5 {[%clk 0:01:37.3]} 20... Re7 {[%clk 0:00:57.7]} 21.
Bg5 {[%clk 0:01:30.7]} 21... a6 {[%clk 0:00:41.2]} 22. Qa4 {[%clk 0:01:25.3]}
22... h6 {[%clk 0:00:35.4]} 23. Bxf6 {[%clk 0:01:22.6]} 23... Qxf6 {[%clk
0:00:36.3]} 24. Nxb7 {[%clk 0:01:19.5]} 24... Rxb7 {[%clk 0:00:26.7]} 25. Rxc6
{[%clk 0:01:18.8]} 25... Rxc6 {[%clk 0:00:26.7]} 26. Qxc6 {[%clk 0:01:19.7]}
26... Rxb2 {[%clk 0:00:25.2]} 27. Qxa6 {[%clk 0:01:15.3]} 27... Kh7 {[%clk
0:00:20.7]} 28. a4 {[%clk 0:01:11]} 28... Ra2 {[%clk 0:00:20.4]} 29. Bf3 {[%clk
0:00:57.6]} 29... Qg5 {[%clk 0:00:18]} 30. Qxe6 {[%clk 0:00:47.3]} 30... Rxa4
{[%clk 0:00:15.1]} 31. Rxd5 {[%clk 0:00:43.9]} 31... Ra1+ {[%clk 0:00:13.1]} 32.
Kg2 {[%clk 0:00:44]} 32... Qc1 {[%clk 0:00:13.4]} 33. Be4+ {[%clk 0:00:43.9]}
33... Kh8 {[%clk 0:00:12.6]} 34. Qe8# {[%clk 0:00:43.7]} 1-0

[Event "Early-Titled-Tuesday-Blitz-February-06-2024"]
[Site "Chess.com"]
[Date "2024.02.06"]
[Round "1"]
[White "Maitreia"]
[Black "Balla_Tamas"]
[Result "1-0"]
[WhiteElo "2738"]
[BlackElo "2411"]
[TimeControl "180+1"]
[EndTime "8:06:37 PST"]
[Termination "Maitreia won by resignation"]

1. c4 {[%clk 0:03:00.9]} 1... c5 {[%clk 0:03:00.3]} 2. Nc3 {[%clk 0:02:59.7]}
2... Nc6 {[%clk 0:03:00.8]} 3. g3 {[%clk 0:02:56.9]} 3... g6 {[%clk 0:03:01.1]}
4. Bg2 {[%clk 0:02:57.6]} 4... Bg7 {[%clk 0:03:01.9]} 5. Nf3 {[%clk 0:02:58.4]}
5... e6 {[%clk 0:03:02.6]} 6. d4 {[%clk 0:02:58.9]} 6... cxd4 {[%clk 0:03:02.6]}
7. Nb5 {[%clk 0:02:59.2]} 7... d5 {[%clk 0:03:03.1]} 8. cxd5 {[%clk 0:03:00.1]}
8... exd5 {[%clk 0:03:03.2]} 9. Nbxd4 {[%clk 0:02:56.9]} 9... Nge7 {[%clk
0:03:01.8]} 10. O-O {[%clk 0:02:56.2]} 10... O-O {[%clk 0:03:02]} 11. b3 {[%clk
0:02:56.5]} 11... Bf5 {[%clk 0:02:36.5]} 12. Bb2 {[%clk 0:02:56]} 12... Be4
{[%clk 0:02:36.9]} 13. Nxc6 {[%clk 0:02:54]} 13... bxc6 {[%clk 0:02:34.9]} 14.
Bxg7 {[%clk 0:02:54.5]} 14... Kxg7 {[%clk 0:02:35.8]} 15. Rc1 {[%clk 0:02:52.6]}
15... Rc8 {[%clk 0:02:34.9]} 16. Qd4+ {[%clk 0:02:50.7]} 16... Kg8 {[%clk
0:02:29.6]} 17. Ne5 {[%clk 0:02:48.9]} 17... Bxg2 {[%clk 0:02:23.7]} 18. Kxg2
{[%clk 0:02:49.8]} 18... Qd6 {[%clk 0:02:23.8]} 19. Ng4 {[%clk 0:02:46.9]} 19...
Nf5 {[%clk 0:02:08.8]} 20. Nf6+ {[%clk 0:02:30.8]} 20... Kh8 {[%clk 0:01:56.8]}
21. Qb2 {[%clk 0:02:30.7]} 21... d4 {[%clk 0:01:51.8]} 22. Ne4 {[%clk
0:02:12.9]} 22... Qd5 {[%clk 0:01:50.3]} 23. f3 {[%clk 0:02:06.8]} 23... Ne3+
{[%clk 0:01:48.1]} 24. Kf2 {[%clk 0:02:05.7]} 24... Nxf1 {[%clk 0:01:38.3]} 25.
Rc5 {[%clk 0:02:04.5]} 25... Qd7 {[%clk 0:01:21.6]} 26. Kxf1 {[%clk 0:02:04.7]}
26... f5 {[%clk 0:01:18.5]} 27. Nf2 {[%clk 0:01:57]} 27... Rcd8 {[%clk
0:01:15.7]} 28. Nd3 {[%clk 0:01:55.8]} 28... Qe6 {[%clk 0:01:08.5]} 29. Re5
{[%clk 0:01:54.7]} 29... Qf6 {[%clk 0:01:07.7]} 30. Qc2 {[%clk 0:01:53.6]} 30...
Rfe8 {[%clk 0:01:07.4]} 31. f4 {[%clk 0:01:48.8]} 31... Qd6 {[%clk 0:01:02.1]}
32. Qc4 {[%clk 0:01:45.4]} 32... Rxe5 {[%clk 0:00:56]} 33. Nxe5 {[%clk
0:01:46.3]} 33... Rf8 {[%clk 0:00:12.9]} 34. Nf7+ {[%clk 0:01:44.6]} 34... Rxf7
{[%clk 0:00:13.4]} 35. Qxf7 {[%clk 0:01:45.5]} 35... Qc5 {[%clk 0:00:13.5]} 36.
Kg2 {[%clk 0:01:38.2]} 36... a5 {[%clk 0:00:08.1]} 37. Kh3 {[%clk 0:01:37.9]}
37... h6 {[%clk 0:00:06.1]} 38. Qxg6 {[%clk 0:01:36.3]} 38... Qe7 {[%clk
0:00:04.7]} 39. Qxh6+ {[%clk 0:01:34.3]} 39... Kg8 {[%clk 0:00:05.4]} 40. Qg6+
{[%clk 0:01:33.7]} 40... Kf8 {[%clk 0:00:05.6]} 41. Qxf5+ {[%clk 0:01:33.5]}
41... Ke8 {[%clk 0:00:06.4]} 42. Qe5 {[%clk 0:01:26.8]} 42... Qxe5 {[%clk
0:00:05.9]} 43. fxe5 {[%clk 0:01:27.7]} 43... Ke7 {[%clk 0:00:05.8]} 44. Kg4
{[%clk 0:01:28.2]} 44... Ke6 {[%clk 0:00:05.9]} 45. Kf4 {[%clk 0:01:28.6]} 45...
c5 {[%clk 0:00:05.2]} 46. Ke4 {[%clk 0:01:27.7]} 46... a4 {[%clk 0:00:06.1]} 47.
h4 {[%clk 0:01:25.5]} 47... axb3 {[%clk 0:00:06.5]} 48. axb3 {[%clk 0:01:25.5]}
48... d3 {[%clk 0:00:07.2]} 49. exd3 {[%clk 0:01:25.5]} 1-0

[Event "Early-Titled-Tuesday-Blitz-February-06-2024"]
[Site "Chess.com"]
[Date "2024.02.06"]
[Round "1"]
[White "KorolDimitriy75"]
[Black "Ginger_GM"]
[Result "0-1"]
[WhiteElo "2368"]
[BlackElo "2683"]
[TimeControl "180+1"]
[EndTime "8:06:37 PST"]
[Termination "Ginger_GM won by checkmate"]

1. d4 {[%clk 0:03:00.9]} 1... e6 {[%clk 0:02:56.5]} 2. c4 {[%clk 0:03:01.3]}
2... f5 {[%clk 0:02:55.7]} 3. Nf3 {[%clk 0:03:00.5]} 3... Nf6 {[%clk 0:02:55.4]}
4. g3 {[%clk 0:03:00.3]} 4... Be7 {[%clk 0:02:54.9]} 5. Bg2 {[%clk 0:03:00.4]}
5... O-O {[%clk 0:02:54.9]} 6. O-O {[%clk 0:03:00.6]} 6... d6 {[%clk 0:02:55.1]}
7. b3 {[%clk 0:03:00.3]} 7... Ne4 {[%clk 0:02:54.2]} 8. Bb2 {[%clk 0:03:00]}
8... Bf6 {[%clk 0:02:53.7]} 9. Nbd2 {[%clk 0:02:59.4]} 9... Nc6 {[%clk
0:02:53.4]} 10. e3 {[%clk 0:02:52.1]} 10... Nxd2 {[%clk 0:02:52.4]} 11. Qxd2
{[%clk 0:02:51.8]} 11... e5 {[%clk 0:02:52.3]} 12. Rfd1 {[%clk 0:02:27.9]} 12...
Qe7 {[%clk 0:02:45.1]} 13. Rac1 {[%clk 0:02:20.2]} 13... g5 {[%clk 0:02:42]} 14.
d5 {[%clk 0:01:32.9]} 14... Nd8 {[%clk 0:02:37.7]} 15. b4 {[%clk 0:01:19.9]}
15... g4 {[%clk 0:02:09.9]} 16. Ne1 {[%clk 0:01:19.1]} 16... Bd7 {[%clk
0:02:08.4]} 17. c5 {[%clk 0:01:16.7]} 17... Ba4 {[%clk 0:02:07.3]} 18. Nc2
{[%clk 0:01:07.3]} 18... Nf7 {[%clk 0:02:05.5]} 19. Re1 {[%clk 0:00:56.4]} 19...
Ng5 {[%clk 0:01:42.9]} 20. cxd6 {[%clk 0:00:49.7]} 20... cxd6 {[%clk 0:01:42.4]}
21. Na3 {[%clk 0:00:40.6]} 21... a6 {[%clk 0:01:31.3]} 22. Nc4 {[%clk
0:00:37.2]} 22... Qd8 {[%clk 0:01:12.9]} 23. Na5 {[%clk 0:00:29.8]} 23... Rf7
{[%clk 0:01:11.8]} 24. Qe2 {[%clk 0:00:14]} 24... h5 {[%clk 0:01:02.5]} 25. a3
{[%clk 0:00:09]} 25... Rb8 {[%clk 0:00:57.1]} 26. e4 {[%clk 0:00:08.7]} 26... f4
{[%clk 0:00:40.5]} 27. Bh1 {[%clk 0:00:07.3]} 27... f3 {[%clk 0:00:39.4]} 28.
Qd2 {[%clk 0:00:05.9]} 28... Bb5 {[%clk 0:00:38.1]} 29. Re3 {[%clk 0:00:04.4]}
29... Nh3# {[%clk 0:00:37.4]} 0-1

[Event "Early-Titled-Tuesday-Blitz-February-06-2024"]
[Site "Chess.com"]
[Date "2024.02.06"]
[Round "1"]
[White "Keures"]
[Black "forevery0ung"]
[Result "0-1"]
[WhiteElo "2426"]
[BlackElo "2771"]
[TimeControl "180+1"]
[EndTime "8:06:38 PST"]
[Termination "forevery0ung won by resignation"]

1. d4 {[%clk 0:03:00.9]} 1... Nf6 {[%clk 0:02:58.9]} 2. c4 {[%clk 0:03:00.3]}
2... g6 {[%clk 0:02:59.3]} 3. Nc3 {[%clk 0:02:59.8]} 3... d6 {[%clk 0:02:59.6]}
4. e4 {[%clk 0:02:59.1]} 4... Bg7 {[%clk 0:03:00.2]} 5. h3 {[%clk 0:02:59.5]}
5... O-O {[%clk 0:02:59.7]} 6. Nf3 {[%clk 0:03:00.2]} 6... Na6 {[%clk
0:02:58.7]} 7. Be3 {[%clk 0:02:59.7]} 7... c5 {[%clk 0:02:58.5]} 8. d5 {[%clk
0:02:59.7]} 8... Nc7 {[%clk 0:02:58]} 9. Be2 {[%clk 0:02:55.8]} 9... a6 {[%clk
0:02:45.1]} 10. a4 {[%clk 0:02:54.7]} 10... b6 {[%clk 0:02:45.1]} 11. O-O {[%clk
0:02:53.7]} 11... Rb8 {[%clk 0:02:44]} 12. e5 {[%clk 0:02:45.7]} 12... Nfe8
{[%clk 0:02:41.5]} 13. Bf4 {[%clk 0:02:42.2]} 13... Bd7 {[%clk 0:02:19.8]} 14.
Ne4 {[%clk 0:02:08.9]} 14... Bf5 {[%clk 0:02:02.3]} 15. exd6 {[%clk 0:02:06.6]}
15... Nxd6 {[%clk 0:01:57.4]} 16. Nxd6 {[%clk 0:02:04]} 16... exd6 {[%clk
0:01:58.3]} 17. Qd2 {[%clk 0:01:55]} 17... Re8 {[%clk 0:01:53]} 18. Ra2 {[%clk
0:01:40.8]} 18... b5 {[%clk 0:01:41.6]} 19. axb5 {[%clk 0:01:40.1]} 19... axb5
{[%clk 0:01:42.5]} 20. b4 {[%clk 0:01:30.4]} 20... bxc4 {[%clk 0:01:34.5]} 21.
bxc5 {[%clk 0:01:27.9]} 21... c3 {[%clk 0:01:35]} 22. Qc1 {[%clk 0:01:20.5]}
22... dxc5 {[%clk 0:01:28.5]} 23. d6 {[%clk 0:01:16.4]} 23... Nd5 {[%clk
0:01:27.6]} 24. d7 {[%clk 0:01:14.1]} 24... Qxd7 {[%clk 0:01:27.7]} 25. Bxb8
{[%clk 0:01:14.1]} 25... Rxb8 {[%clk 0:01:28.5]} 26. Rd1 {[%clk 0:01:06.4]}
26... h6 {[%clk 0:01:05.1]} 27. Bc4 {[%clk 0:01:03]} 27... Rb1 {[%clk
0:01:00.4]} 28. Qxb1 {[%clk 0:00:36.3]} 28... Bxb1 {[%clk 0:01:01.3]} 29. Rxb1
{[%clk 0:00:36.3]} 29... Nb4 {[%clk 0:00:57.7]} 30. Ra8+ {[%clk 0:00:31.6]}
30... Kh7 {[%clk 0:00:57.2]} 31. Rc1 {[%clk 0:00:28]} 31... c2 {[%clk
0:00:55.7]} 32. Ne1 {[%clk 0:00:16.3]} 32... Bb2 {[%clk 0:00:45.9]} 33. Rxc2
{[%clk 0:00:15.5]} 33... Nxc2 {[%clk 0:00:46.2]} 34. Nxc2 {[%clk 0:00:16.4]}
34... Qd1+ {[%clk 0:00:46.1]} 35. Kh2 {[%clk 0:00:16.2]} 35... Be5+ {[%clk
0:00:43.5]} 36. g3 {[%clk 0:00:15.3]} 36... Qxc2 {[%clk 0:00:44.1]} 0-1

[Event "Early-Titled-Tuesday-Blitz-February-06-2024"]
[Site "Chess.com"]
[Date "2024.02.06"]
[Round "1"]
[White "Rdeux42"]
[Black "iwanyu"]
[Result "1/2-1/2"]
[WhiteElo "2440"]
[BlackElo "2770"]
[TimeControl "180+1"]
[EndTime "8:06:40 PST"]
[Termination "Game drawn by repetition"]

1. e4 {[%clk 0:03:00.9]} 1... c6 {[%clk 0:02:56.8]} 2. d4 {[%clk 0:03:00.4]}
2... d5 {[%clk 0:02:57.2]} 3. Nc3 {[%clk 0:03:01.3]} 3... dxe4 {[%clk
0:02:57.4]} 4. Nxe4 {[%clk 0:03:01.6]} 4... Nf6 {[%clk 0:02:58.2]} 5. Nxf6+
{[%clk 0:03:01.7]} 5... exf6 {[%clk 0:02:59.1]} 6. Bc4 {[%clk 0:03:01.5]} 6...
Bd6 {[%clk 0:02:59.1]} 7. Qe2+ {[%clk 0:03:00.5]} 7... Be7 {[%clk 0:02:59.7]} 8.
Nf3 {[%clk 0:02:59.8]} 8... O-O {[%clk 0:02:59.9]} 9. O-O {[%clk 0:03:00.5]}
9... Nd7 {[%clk 0:02:59.8]} 10. Re1 {[%clk 0:02:57.8]} 10... Re8 {[%clk
0:02:57.6]} 11. Bf4 {[%clk 0:02:56.2]} 11... Nf8 {[%clk 0:02:57.1]} 12. c3
{[%clk 0:02:53.3]} 12... Be6 {[%clk 0:02:55.8]} 13. h3 {[%clk 0:02:48.9]} 13...
Qd7 {[%clk 0:02:46.1]} 14. Rad1 {[%clk 0:02:47.8]} 14... Rad8 {[%clk 0:02:40.9]}
15. Bg3 {[%clk 0:02:34.9]} 15... b5 {[%clk 0:02:38.9]} 16. Bxe6 {[%clk
0:02:31.2]} 16... Nxe6 {[%clk 0:02:39.8]} 17. b3 {[%clk 0:02:20.1]} 17... Qd5
{[%clk 0:02:37.6]} 18. c4 {[%clk 0:02:18.7]} 18... bxc4 {[%clk 0:02:38.5]} 19.
bxc4 {[%clk 0:02:17.8]} 19... Qa5 {[%clk 0:02:33.9]} 20. Qc2 {[%clk 0:01:59.7]}
20... Nxd4 {[%clk 0:02:19]} 21. Rxd4 {[%clk 0:01:20.4]} 21... Rxd4 {[%clk
0:02:18.2]} 22. Rxe7 {[%clk 0:01:21]} 22... Rxe7 {[%clk 0:02:05]} 23. Nxd4
{[%clk 0:01:21.1]} 23... Qc5 {[%clk 0:02:02.8]} 24. Nf5 {[%clk 0:01:11.7]} 24...
Re1+ {[%clk 0:02:01.8]} 25. Kh2 {[%clk 0:01:11.4]} 25... g6 {[%clk 0:02:02.1]}
26. Ne3 {[%clk 0:01:02.5]} 26... Qd4 {[%clk 0:01:58.5]} 27. Qb3 {[%clk
0:00:44.4]} 27... h5 {[%clk 0:01:57.2]} 28. Qb8+ {[%clk 0:00:38.1]} 28... Kg7
{[%clk 0:01:56.9]} 29. Bd6 {[%clk 0:00:37]} 29... Kh7 {[%clk 0:01:08.7]} 30. Qf8
{[%clk 0:00:31.4]} 30... f5 {[%clk 0:01:07.2]} 31. Qxf7+ {[%clk 0:00:27.5]}
31... Qg7 {[%clk 0:01:07.2]} 32. Qe8 {[%clk 0:00:10.4]} 32... Qa1 {[%clk
0:00:59.1]} 33. Qf7+ {[%clk 0:00:08.2]} 33... Qg7 {[%clk 0:00:58.3]} 34. Qe8
{[%clk 0:00:08.5]} 34... Qg8 {[%clk 0:00:46.5]} 35. Qd7+ {[%clk 0:00:07.6]}
35... Qg7 {[%clk 0:00:46.4]} 36. Qe8 {[%clk 0:00:06.5]} 1/2-1/2

[Event "Early-Titled-Tuesday-Blitz-February-06-2024"]
[Site "Chess.com"]
[Date "2024.02.06"]
[Round "1"]
[White "AlexeiShirov"]
[Black "ChessFighter1975"]
[Result "1-0"]
[WhiteElo "2771"]
[BlackElo "2425"]
[TimeControl "180+1"]
[EndTime "8:06:41 PST"]
[Termination "AlexeiShirov won by checkmate"]

1. e4 {[%clk 0:03:00.9]} 1... Nf6 {[%clk 0:03:00]} 2. e5 {[%clk 0:03:00.2]} 2...
Nd5 {[%clk 0:03:00.4]} 3. d4 {[%clk 0:03:00.3]} 3... d6 {[%clk 0:03:00.6]} 4. c4
{[%clk 0:03:00.4]} 4... Nb6 {[%clk 0:03:00.9]} 5. f4 {[%clk 0:03:00.7]} 5...
dxe5 {[%clk 0:03:00.8]} 6. fxe5 {[%clk 0:03:00]} 6... c5 {[%clk 0:03:01.1]} 7.
d5 {[%clk 0:02:59.2]} 7... g6 {[%clk 0:03:01.6]} 8. Nc3 {[%clk 0:02:55.8]} 8...
Bg7 {[%clk 0:03:01.9]} 9. Nf3 {[%clk 0:02:54.9]} 9... Bg4 {[%clk 0:02:59.3]} 10.
Bf4 {[%clk 0:02:39.4]} 10... N8d7 {[%clk 0:02:56.6]} 11. Qe2 {[%clk 0:02:38]}
11... O-O {[%clk 0:02:51.8]} 12. O-O-O {[%clk 0:02:37.3]} 12... Qb8 {[%clk
0:02:32.3]} 13. Re1 {[%clk 0:02:35.2]} 13... e6 {[%clk 0:02:22.8]} 14. d6 {[%clk
0:02:32.6]} 14... f6 {[%clk 0:02:13.4]} 15. exf6 {[%clk 0:02:27.4]} 15... Nxf6
{[%clk 0:02:09.5]} 16. h3 {[%clk 0:02:23.7]} 16... Bxf3 {[%clk 0:02:03.2]} 17.
gxf3 {[%clk 0:02:19.5]} 17... Kh8 {[%clk 0:01:52]} 18. Nb5 {[%clk 0:02:16]}
18... Nh5 {[%clk 0:01:44.7]} 19. Be5 {[%clk 0:02:15.9]} 19... Qc8 {[%clk
0:01:28.7]} 20. h4 {[%clk 0:02:07.9]} 20... Qd7 {[%clk 0:01:22.7]} 21. Bh3
{[%clk 0:02:05.5]} 21... a6 {[%clk 0:01:13]} 22. Nc7 {[%clk 0:02:04.4]} 22...
Rad8 {[%clk 0:01:13.7]} 23. Nxe6 {[%clk 0:02:01.9]} 23... Qf7 {[%clk 0:01:01.6]}
24. Bxg7+ {[%clk 0:01:50.3]} 24... Nxg7 {[%clk 0:01:01.5]} 25. Nxd8 {[%clk
0:01:46.8]} 25... Rxd8 {[%clk 0:01:01.4]} 26. Qe5 {[%clk 0:01:45.5]} 26... Nxc4
{[%clk 0:00:37.1]} 27. Qxc5 {[%clk 0:01:30.3]} 27... Rxd6 {[%clk 0:00:20.4]} 28.
Qc8+ {[%clk 0:01:24]} 28... Qg8 {[%clk 0:00:16.2]} 29. Qxg8+ {[%clk 0:01:20]}
29... Kxg8 {[%clk 0:00:17.1]} 30. Re7 {[%clk 0:01:18.4]} 30... Rc6 {[%clk
0:00:10.4]} 31. Kb1 {[%clk 0:01:09.5]} 31... b5 {[%clk 0:00:06.8]} 32. Rd1
{[%clk 0:01:07.2]} 32... Nd6 {[%clk 0:00:03.8]} 33. Rc1 {[%clk 0:00:58.7]} 33...
Rb6 {[%clk 0:00:03.4]} 34. Rcc7 {[%clk 0:00:56]} 34... Ngf5 {[%clk 0:00:03.4]}
35. Bxf5 {[%clk 0:00:55.3]} 35... Nxf5 {[%clk 0:00:04.3]} 36. Re8# {[%clk
0:00:54.9]} 1-0

[Event "Early-Titled-Tuesday-Blitz-February-06-2024"]
[Site "Chess.com"]
[Date "2024.02.06"]
[Round "1"]
[White "Road2GM3000"]
[Black "scarabee43"]
[Result "0-1"]
[WhiteElo "2472"]
[BlackElo "2868"]
[TimeControl "180+1"]
[EndTime "8:06:42 PST"]
[Termination "scarabee43 won on time"]

1. d4 {[%clk 0:03:00.9]} 1... Nf6 {[%clk 0:02:59.6]} 2. c4 {[%clk 0:03:00.9]}
2... e6 {[%clk 0:02:59.9]} 3. Nc3 {[%clk 0:03:01.3]} 3... d5 {[%clk 0:03:00]} 4.
cxd5 {[%clk 0:03:00.5]} 4... exd5 {[%clk 0:03:00.2]} 5. Bg5 {[%clk 0:03:00.9]}
5... Be7 {[%clk 0:03:00.3]} 6. e3 {[%clk 0:03:01.3]} 6... h6 {[%clk 0:03:00.2]}
7. Bh4 {[%clk 0:03:00.6]} 7... c6 {[%clk 0:03:00.1]} 8. Bd3 {[%clk 0:03:00.9]}
8... O-O {[%clk 0:02:55.8]} 9. Qc2 {[%clk 0:03:01.3]} 9... a5 {[%clk 0:02:53.2]}
10. Nf3 {[%clk 0:03:01.4]} 10... Na6 {[%clk 0:02:53.7]} 11. a3 {[%clk
0:03:00.2]} 11... Be6 {[%clk 0:02:48.8]} 12. Ne5 {[%clk 0:02:59.7]} 12... Nd7
{[%clk 0:02:47.6]} 13. Bg3 {[%clk 0:02:58.9]} 13... Nxe5 {[%clk 0:02:45.4]} 14.
dxe5 {[%clk 0:02:59.2]} 14... Nc5 {[%clk 0:02:44]} 15. O-O {[%clk 0:02:53.6]}
15... Nxd3 {[%clk 0:02:41.2]} 16. Qxd3 {[%clk 0:02:54.5]} 16... Qd7 {[%clk
0:02:40.6]} 17. Rad1 {[%clk 0:02:49.4]} 17... Rfd8 {[%clk 0:02:38.9]} 18. e4
{[%clk 0:02:43.8]} 18... d4 {[%clk 0:02:29.9]} 19. Ne2 {[%clk 0:02:32.8]} 19...
c5 {[%clk 0:02:30.2]} 20. f4 {[%clk 0:02:32.3]} 20... a4 {[%clk 0:02:19.2]} 21.
f5 {[%clk 0:02:20.8]} 21... Bb3 {[%clk 0:02:18.7]} 22. f6 {[%clk 0:01:58.5]}
22... Bf8 {[%clk 0:02:17.9]} 23. Rd2 {[%clk 0:01:49.8]} 23... g6 {[%clk
0:01:59.1]} 24. Qf3 {[%clk 0:01:41.6]} 24... Ra6 {[%clk 0:01:50.4]} 25. Nf4
{[%clk 0:01:40.3]} 25... b5 {[%clk 0:01:28.3]} 26. h4 {[%clk 0:00:37.1]} 26...
Be6 {[%clk 0:00:56.9]} 27. Rdf2 {[%clk 0:00:22.2]} 27... Bg4 {[%clk 0:00:55.8]}
28. Qd3 {[%clk 0:00:20.9]} 28... c4 {[%clk 0:00:56.2]} 29. Qd2 {[%clk
0:00:19.1]} 29... d3 {[%clk 0:00:56.1]} 30. Nxg6 {[%clk 0:00:11.8]} 30... fxg6
{[%clk 0:00:55.3]} 31. f7+ {[%clk 0:00:09.1]} 31... Kh7 {[%clk 0:00:55.3]} 32.
Rf6 {[%clk 0:00:08.4]} 32... Rxf6 {[%clk 0:00:54]} 33. Rxf6 {[%clk 0:00:09.3]}
33... Qd4+ {[%clk 0:00:52.8]} 34. Kh2 {[%clk 0:00:02.9]} 34... Qxe4 {[%clk
0:00:49.9]} 35. Rf4 {[%clk 0:00:02.2]} 35... Qe2 {[%clk 0:00:48.7]} 0-1